bitfinex-derivatives/quotes_BTCF0:USTF0_20210406
["timestamp","ask_amount","ask_price","bid_price","bid_amount"]
[1617750180921,0.35322202,57856.0,57855.0,0.53715505]
[1617750181321,0.71655177,57856.0,57855.0,0.53715505]
[1617750181721,0.10725655,57856.0,57855.0,0.53715505]
[1617750184427,0.47046353,57856.0,57855.0,0.53715505]
[1617750185529,0.71642336,57856.0,57855.0,0.53715505]
[1617750185727,0.35321638,57856.0,57855.0,0.53715505]
[1617750185926,0.71643773,57856.0,57855.0,0.53715505]
[1617750190033,0.10725655,57856.0,57855.0,0.53715505]
[1617750191333,0.10725655,57856.0,57855.0,0.98677541]
[1617750192334,1.10725655,57856.0,57855.0,0.98677541]
[1617750192735,1.10725655,57856.0,57855.0,0.53715505]
[1617750194736,0.10725655,57856.0,57855.0,0.53715505]
[1617750195641,0.10725655,57856.0,57855.0,0.9866775]
[1617750199345,1.10725655,57856.0,57855.0,0.87942095]
[1617750199945,1.10725655,57856.0,57855.0,0.36841022]
[1617750200348,1.47041337,57856.0,57855.0,0.42989348]
[1617750200747,1.47041337,57856.0,57855.0,0.36841022]
[1617750201146,0.47041337,57856.0,57855.0,0.36841022]
[1617750201347,0.47041337,57856.0,57855.0,0.73635353]
[1617750201348,0.40998782,57856.0,57855.0,0.73635353]
[1617750201746,1.40998782,57856.0,57855.0,0.67487205]
[1617750202850,1.77313158,57856.0,57855.0,0.67487205]
[1617750203452,0.77313158,57856.0,57855.0,0.67487205]
[1617750204055,1.77313158,57856.0,57855.0,0.67487205]
[1617750204650,1.01906244,57856.0,57855.0,0.67487205]
[1617750204848,2.01906244,57856.0,57855.0,0.67487205]
[1617750213661,1.01906244,57856.0,57855.0,0.67487205]
[1617750214267,1.01906244,57856.0,57855.0,1.12470309]
[1617750215262,1.01906244,57856.0,57855.0,1.18618573]
[1617750215665,1.01906244,57856.0,57855.0,1.12470309]
[1617750218067,2.01906244,57856.0,57855.0,1.12470309]
[1617750218666,1.01906244,57856.0,57855.0,1.12470309]
[1617750225280,1.01906244,57856.0,57855.0,1.636701]
[1617750225478,1.01906244,57856.0,57855.0,1.74395755]
[1617750226280,1.01906244,57856.0,57855.0,1.80543694]
[1617750228181,2.01906244,57856.0,57855.0,1.69818039]
[1617750228382,1.12037244,57856.0,57855.0,1.69818039]
[1617750228784,2.12037244,57856.0,57855.0,1.69818039]
[1617750228982,2.12037244,57856.0,57855.0,1.12470309]
[1617750230384,2.56639129,57856.0,57855.0,1.12470309]
[1617750231587,2.56639129,57856.0,57855.0,1.18618436]
[1617750231986,2.56639129,57856.0,57855.0,1.12470309]
[1617750235289,1.56639129,57856.0,57855.0,1.12470309]
[1617750235890,1.56639129,57856.0,57855.0,1.18618458]
[1617750235891,1.12037244,57856.0,57855.0,1.18618458]
[1617750236091,1.01906244,57856.0,57855.0,1.31142458]
[1617750238195,1.01906244,57856.0,57855.0,1.18618458]
[1617750243800,1.46500874,57856.0,57855.0,1.18618458]
[1617750244203,1.46500874,57856.0,57855.0,1.12470309]
[1617750252212,2.46500874,57856.0,57855.0,1.12470309]
[1617750256913,2.57824874,57856.0,57855.0,1.12470309]
[1617750261022,2.57824874,57856.0,57855.0,0.67487205]
[1617750261423,2.57824874,57856.0,57855.0,1.12540765]
[1617750261924,2.57824874,57856.0,57855.0,0.67487205]
[1617750262527,2.57824874,57856.0,57855.0,0.73635654]
[1617750262926,2.57824874,57856.0,57855.0,0.67487205]
[1617750264328,3.08322743,57856.0,57855.0,0.67487205]
[1617750264528,3.28322743,57856.0,57855.0,0.67487205]
[1617750265329,3.28322743,57856.0,57855.0,0.30646183]
[1617750265631,3.28322743,57856.0,57855.0,0.36795024]
[1617750266032,3.28322743,57856.0,57855.0,0.30646183]
[1617750267035,3.08322743,57856.0,57855.0,0.30646183]
[1617750269738,3.08322743,57856.0,57854.0,0.30718286]
[1617750269939,1.85953457,57855.0,57853.0,0.30718823]
[1617750270139,2.85953457,57855.0,57853.0,0.30718823]
[1617750270344,1.61355812,57854.0,57853.0,0.30718823]
[1617750270540,2.61355812,57854.0,57853.0,0.30718823]
[1617750270940,2.72422864,57854.0,57853.0,0.30718823]
[1617750271241,2.3552993,57854.0,57853.0,0.30718823]
[1617750273442,2.3552993,57854.0,57852.0,0.3066692]
[1617750273842,1.35441003,57853.0,57850.0,0.36799544]
[1617750274442,1.66522662,57851.0,57846.0,0.4497798]
[1617750274843,2.10855366,57851.0,57849.0,0.36800347]
[1617750275243,2.10855366,57851.0,57848.0,0.36800478]
[1617750275244,0.91091879,57850.0,57848.0,0.36800478]
[1617750275446,1.3541944,57850.0,57848.0,0.36800478]
[1617750275844,1.77222842,57849.0,57848.0,0.36800478]
[1617750276043,0.77222842,57849.0,57848.0,0.36800478]
[1617750276244,2.01818051,57849.0,57845.0,0.44977825]
[1617750277044,2.01818051,57849.0,57834.0,0.06148802]
[1617750277045,0.30236388,57846.0,57840.0,0.51110794]
[1617750277745,0.10725655,57841.0,57840.0,0.51110794]
[1617750277949,0.10725655,57841.0,57831.0,0.10725655]
[1617750278346,0.10725655,57841.0,57840.0,1.12445813]
[1617750279448,0.10725655,57841.0,57840.0,1.63556485]
[1617750280348,0.10725655,57841.0,57840.0,1.74215485]
[1617750280949,0.10725655,57841.0,57840.0,1.80364221]
[1617750285553,0.10725655,57841.0,57840.0,1.29253549]
[1617750287055,0.10725655,57841.0,57837.0,0.10725655]
[1617750287254,0.10725655,57841.0,57822.0,0.71554229]
[1617750287454,0.10725655,57841.0,57840.0,0.81776731]
[1617750287654,0.10725655,57841.0,57840.0,1.12443005]
[1617750288855,0.10725655,57841.0,57840.0,0.81776731]
[1617750289256,0.10725655,57841.0,57840.0,1.18591767]
[1617750289455,0.10725655,57841.0,57840.0,0.51126052]
[1617750289656,0.10725655,57841.0,57840.0,1.18591668]
[1617750289856,0.10725655,57841.0,57840.0,0.87925479]
[1617750290056,0.10725655,57841.0,57840.0,1.12442812]
[1617750290456,0.10725655,57841.0,57840.0,0.81776629]
[1617750290656,0.10725655,57841.0,57838.0,0.11568]
[1617750291258,0.10725655,57841.0,57840.0,1.12443716]
[1617750291958,0.10725655,57841.0,57840.0,1.74278196]
[1617750292360,0.10725655,57841.0,57840.0,1.80426881]
[1617750292760,0.10725655,57841.0,57840.0,0.47540808]
[1617750292958,0.10725655,57841.0,57840.0,0.10725655]
[1617750293362,0.10725655,57841.0,57840.0,1.74275613]
[1617750299966,0.10725655,57841.0,57840.0,1.63549958]
[1617750300767,0.11742437,57841.0,57840.0,1.63549958]
[1617750301168,0.11742437,57841.0,57840.0,1.12440596]
[1617750301868,0.27465437,57841.0,57840.0,1.12440596]
[1617750304070,0.27465437,57841.0,57840.0,1.17600596]
[1617750304274,0.11742437,57841.0,57840.0,1.12440596]
[1617750307874,0.10725655,57841.0,57840.0,1.12440596]
[1617750308273,0.40796045,57841.0,57840.0,1.12440596]
[1617750310375,0.76892526,57841.0,57840.0,1.12440596]
[1617750311578,0.40796045,57841.0,57840.0,1.12440596]
[1617750311977,0.10725655,57841.0,57840.0,1.23166251]
[1617750312479,0.11738936,57841.0,57840.0,2.07466704]
[1617750312881,0.10725655,57841.0,57840.0,2.07466704]
[1617750321398,0.10725655,57841.0,57840.0,2.64802431]
[1617750321998,0.10725655,57841.0,57840.0,2.84802431]
[1617750323699,0.10725655,57841.0,57840.0,2.94025775]
[1617750325902,0.10725655,57841.0,57840.0,2.84802431]
[1617750326301,0.10725655,57841.0,57840.0,2.27466704]
[1617750328304,0.10725655,57841.0,57840.0,2.84796224]
[1617750329805,0.08835655,57841.0,57840.0,2.84796224]
[1617750330005,0.01012769,57849.0,57840.0,2.84796224]
[1617750330204,0.01012769,57849.0,57848.0,0.10725655]
[1617750330405,0.30092265,57850.0,57848.0,0.78290592]
[1617750330606,0.30088112,57849.0,57848.0,1.74519443]
[1617750331007,0.01013274,57850.0,57848.0,1.806683]
[1617750331809,0.30099309,57850.0,57849.0,1.69988118]
[1617750332209,0.40824964,57850.0,57849.0,1.69988118]
[1617750336215,0.11738757,57850.0,57849.0,1.69988118]
[1617750336416,0.11738757,57850.0,57849.0,1.96988118]
[1617750336615,0.11738757,57850.0,57849.0,3.46988118]
[1617750336616,0.01013102,57850.0,57849.0,3.46988118]
[1617750337018,0.01013102,57850.0,57849.0,3.66988118]
[1617750337217,0.0101413,57855.0,57849.0,5.33550755]
[1617750337817,0.50214495,57869.0,57849.0,5.33550755]
[1617750337818,0.01014411,57857.0,57851.0,1.11987]
[1617750338016,0.01014411,57857.0,57854.0,1.0]
[1617750338219,0.01014961,57860.0,57856.0,1.23351187]
[1617750338417,0.01014961,57860.0,57857.0,1.7]
[1617750338617,0.36186871,57864.0,57858.0,0.01]
[1617750338817,0.35536871,57864.0,57858.0,0.01]
[1617750339018,0.44259629,57874.0,57859.0,2.53564431]
[1617750339217,0.44259629,57874.0,57863.0,1.0]
[1617750339419,0.44259629,57874.0,57864.0,1.84122]
[1617750339622,0.44297294,57878.0,57873.0,0.9623055]
[1617750339819,0.44297294,57878.0,57874.0,0.01]
[1617750340020,0.4405177,57890.0,57874.0,0.01]
[1617750340218,0.4405177,57890.0,57885.0,0.10725655]
[1617750340419,0.4405177,57890.0,57885.0,0.24446655]
[1617750341022,0.44064036,57891.0,57885.0,0.24446655]
[1617750341424,0.24586399,57889.0,57885.0,0.24446655]
[1617750341822,0.44065209,57892.0,57885.0,0.24446655]
[1617750342229,0.44032957,57893.0,57891.0,0.10725655]
[1617750342623,1.62846086,57899.0,57891.0,0.10725655]
[1617750342624,0.4405263,57895.0,57891.0,0.10725655]
[1617750343023,0.4407907,57897.0,57891.0,0.10725655]
[1617750343223,0.4407907,57897.0,57892.0,0.27]
[1617750343625,0.44159392,57907.0,57892.0,0.27]
[1617750344224,0.44159392,57907.0,57902.0,0.10725655]
[1617750344424,0.44159392,57907.0,57902.0,0.24128655]
[1617750344828,1.0,57907.0,57902.0,0.24128655]
[1617750345225,0.44151277,57906.0,57902.0,0.24128655]
[1617750345624,0.44151277,57906.0,57902.0,0.13403]
[1617750345625,0.68731674,57906.0,57902.0,0.13403]
[1617750346226,0.10725655,57903.0,57902.0,0.13403]
[1617750346425,0.10725655,57903.0,57895.0,0.10725655]
[1617750346626,1.10725655,57903.0,57895.0,0.10725655]
[1617750347026,1.0,57896.0,57895.0,0.10725655]
[1617750347428,1.24581402,57896.0,57895.0,0.10725655]
[1617750348126,1.35307057,57896.0,57889.0,0.10725655]
[1617750348728,0.2458175,57895.0,57889.0,0.10725655]
[1617750348928,1.0,57890.0,57879.0,0.4737]
[1617750349528,1.0,57889.0,57879.0,0.4737]
[1617750349729,1.0,57889.0,57880.0,0.27]
[1617750349930,1.0,57889.0,57880.0,0.42004]
[1617750350329,1.0,57889.0,57883.0,0.10725655]
[1617750350630,1.0,57889.0,57884.0,0.27]
[1617750352229,0.10725655,57885.0,57884.0,0.27]
[1617750354634,0.15955655,57885.0,57884.0,0.27]
[1617750354835,0.10725655,57885.0,57884.0,0.27]
[1617750361544,0.21449655,57885.0,57884.0,0.27]
[1617750362748,0.21449655,57885.0,57880.0,0.27]
[1617750363148,0.21449655,57885.0,57884.0,0.27]
[1617750363350,0.21449655,57885.0,57880.0,0.27]
[1617750363748,0.21449655,57885.0,57884.0,0.27]
[1617750363948,0.21449655,57885.0,57879.0,0.4737]
[1617750364149,0.21449655,57885.0,57880.0,0.27]
[1617750364349,0.21449655,57885.0,57884.0,0.27]
[1617750364548,0.10725655,57885.0,57880.0,0.27]
[1617750364947,0.10725655,57885.0,57884.0,0.27]
[1617750365151,0.10725655,57885.0,57884.0,0.12327]
[1617750365548,0.10725655,57885.0,57884.0,0.39327]
[1617750365949,0.10725655,57885.0,57884.0,0.12327]
[1617750366148,0.10725655,57885.0,57884.0,0.39327]
[1617750366349,0.10725655,57885.0,57884.0,0.50052655]
[1617750368049,0.10725655,57885.0,57884.0,0.39327]
[1617750378059,0.00511657,57888.0,57884.0,1.89327]
[1617750378460,0.36136779,57893.0,57884.0,1.89327]
[1617750378461,0.00512085,57893.0,57887.0,0.10725655]
[1617750378860,0.11237917,57895.0,57887.0,1.10995066]
[1617750379461,0.10725655,57895.0,57890.0,0.30511174]
[1617750379763,0.10725655,57895.0,57891.0,0.30510964]
[1617750379963,0.10725655,57895.0,57891.0,0.57510964]
[1617750380164,0.10725655,57895.0,57891.0,0.30510964]
[1617750380367,0.10725655,57895.0,57894.0,0.10725655]
[1617750383467,0.10725655,57895.0,57894.0,0.41232213]
[1617750384070,0.10725655,57895.0,57894.0,1.04838779]
[1617750386168,0.00512061,57907.0,57894.0,1.6957768]
[1617750386368,0.00512061,57907.0,57906.0,0.10725655]
[1617750386568,0.00512061,57907.0,57906.0,0.20425655]
[1617750386768,0.00512131,57908.0,57907.0,0.27]
[1617750387169,0.00512131,57908.0,57906.0,0.20425655]
[1617750387370,0.00512131,57908.0,57907.0,0.27]
[1617750387570,0.44423105,57908.0,57907.0,0.94453736]
[1617750387969,0.66635898,57908.0,57907.0,0.94453736]
[1617750388970,0.30289962,57908.0,57907.0,0.27]
[1617750389371,0.30289962,57908.0,57907.0,0.38335]
[1617750389372,0.66500774,57908.0,57907.0,0.38335]
[1617750389870,0.30289962,57908.0,57907.0,0.38335]
[1617750390470,0.41015617,57908.0,57907.0,0.27]
[1617750390671,0.77218318,57908.0,57907.0,0.27]
[1617750391271,1.01793265,57908.0,57907.0,0.27]
[1617750393572,0.41015617,57908.0,57907.0,0.27]
[1617750394174,0.41015617,57908.0,57907.0,0.57560685]
[1617750394975,0.41015617,57908.0,57907.0,0.27]
[1617750395975,0.77235345,57908.0,57907.0,0.27]
[1617750396379,0.41015617,57908.0,57907.0,0.57560634]
[1617750397977,0.10725655,57908.0,57907.0,0.57560634]
[1617750398176,0.3019606,57909.0,57907.0,0.57560634]
[1617750398577,0.00513269,57908.0,57907.0,0.57560634]
[1617750398980,0.00513269,57908.0,57907.0,0.63671268]
[1617750399679,0.00513429,57909.0,57907.0,0.94229888]
[1617750399881,0.00512752,57911.0,57907.0,0.5755862]
[1617750400480,0.00512657,57910.0,57907.0,0.5755862]
[1617750401280,0.00512565,57909.0,57907.0,0.5755862]
[1617750402083,0.00512383,57910.0,57907.0,0.5755862]
[1617750402281,0.00512383,57910.0,57907.0,2.0755862]
[1617750402481,0.00512383,57910.0,57907.0,3.0755862]
[1617750402683,0.00512473,57912.0,57908.0,0.3052246]
[1617750402882,0.00512473,57912.0,57909.0,0.27]
[1617750403083,0.035,57916.0,57909.0,0.27]
[1617750403084,0.04012822,57916.0,57911.0,0.77065988]
[1617750403485,0.04012822,57916.0,57915.0,0.30521327]
[1617750403486,0.035,57916.0,57915.0,0.30521327]
[1617750403884,0.035,57916.0,57915.0,0.57521327]
[1617750404583,0.035,57916.0,57915.0,0.68246982]
[1617750405885,0.035,57916.0,57915.0,1.04869903]
[1617750407885,0.035,57916.0,57915.0,2.04869903]
[1617750408285,0.035,57916.0,57915.0,2.54869903]
[1617750408487,0.035,57916.0,57915.0,3.99627642]
[1617750410286,0.00514028,57927.0,57915.0,2.99627642]
[1617750410485,0.00514028,57927.0,57926.0,0.10725655]
[1617750410686,0.00514028,57927.0,57926.0,1.74195655]
[1617750410885,0.00514028,57927.0,57926.0,3.01195655]
[1617750411087,0.00514415,57931.0,57926.0,3.68325898]
[1617750411488,0.00211096,57939.0,57930.0,1.0]
[1617750411889,0.00211096,57939.0,57931.0,0.27]
[1617750412487,0.00211096,57939.0,57938.0,0.10725655]
[1617750412687,0.00211096,57939.0,57938.0,0.22716655]
[1617750414292,0.00512135,57939.0,57938.0,0.22716655]
[1617750415694,0.10725655,57940.0,57938.0,0.22716655]
[1617750427903,0.10725655,57940.0,57939.0,0.27]
[1617750428506,0.0021072,57944.0,57939.0,0.27]
[1617750428907,0.10725655,57945.0,57939.0,0.27]
[1617750430509,0.1093642,57945.0,57939.0,0.27]
[1617750430710,0.1093642,57945.0,57944.0,0.10725655]
[1617750431611,0.10725655,57945.0,57944.0,0.10725655]
[1617750432414,0.00210765,57946.0,57944.0,0.10725655]
[1617750432612,0.00210862,57949.0,57944.0,0.10725655]
[1617750433014,0.00210862,57949.0,57945.0,0.27]
[1617750433414,0.00210522,57952.0,57945.0,0.27]
[1617750433813,0.00210481,57951.0,57945.0,0.27]
[1617750434415,0.00210529,57952.0,57945.0,0.27]
[1617750434612,0.00210529,57952.0,57951.0,0.22384655]
[1617750437316,0.30170037,57952.0,57951.0,0.22384655]
[1617750439319,0.66363939,57952.0,57951.0,0.22384655]
[1617750442626,0.63893939,57952.0,57951.0,0.22384655]
[1617750443026,0.88455108,57952.0,57951.0,0.22384655]
[1617750443426,0.63893939,57952.0,57951.0,0.22384655]
[1617750444626,0.27700037,57952.0,57951.0,0.22384655]
[1617750444826,0.27700037,57952.0,57951.0,0.49384655]
[1617750451035,0.24558538,57955.0,57951.0,0.49384655]
[1617750451634,0.24558538,57955.0,57951.0,1.49384655]
[1617750451835,0.47051834,57956.0,57952.0,1.0]
[1617750452233,0.47051834,57956.0,57953.0,0.27]
[1617750452435,0.10725655,57956.0,57953.0,0.27]
[1617750452935,0.10015655,57956.0,57953.0,0.27]
[1617750453333,0.10015655,57956.0,57951.0,1.22384655]
[1617750453334,0.10015655,57956.0,57952.0,0.27]
[1617750453736,0.10015655,57956.0,57954.0,0.27]
[1617750453933,0.10015655,57956.0,57952.0,0.27]
[1617750454137,0.46317993,57956.0,57952.0,0.27]
[1617750454335,0.46317993,57956.0,57955.0,0.27]
[1617750454538,0.46317993,57956.0,57952.0,0.27]
[1617750454735,0.10015655,57956.0,57952.0,0.27]
[1617750454935,0.10015655,57956.0,57955.0,0.27]
[1617750455335,0.10015655,57956.0,57952.0,0.27]
[1617750455539,0.10015655,57956.0,57955.0,0.27]
[1617750455938,0.00514231,57953.0,57952.0,0.27]
[1617750456336,0.00514231,57953.0,57951.0,0.22384655]
[1617750456538,0.00514231,57953.0,57952.0,0.27]
[1617750458639,0.00211752,57953.0,57952.0,0.27]
[1617750460140,0.36493754,57953.0,57952.0,0.27]
[1617750461641,0.81075058,57953.0,57952.0,0.27]
[1617750466445,0.92757058,57953.0,57952.0,0.27]
[1617750466845,1.17315828,57953.0,57952.0,0.27]
[1617750468450,1.05633828,57953.0,57952.0,0.27]
[1617750468649,1.05633828,57953.0,57952.0,0.36889]
[1617750469250,0.81075058,57953.0,57952.0,0.36889]
[1617750470251,0.36493754,57953.0,57952.0,0.36889]
[1617750471251,0.81167574,57953.0,57952.0,0.7366096]
[1617750471651,0.81167574,57953.0,57952.0,0.27]
[1617750472051,1.31905909,57953.0,57952.0,0.27]
[1617750473052,1.62351556,57953.0,57951.0,0.5764455]
[1617750473451,1.62372482,57952.0,57951.0,0.3064455]
[1617750473851,1.62372482,57952.0,57951.0,0.3164455]
[1617750475455,0.10015655,57956.0,57951.0,0.01]
[1617750475856,0.10015655,57956.0,57950.0,0.30645528]
[1617750475857,1.62363566,57952.0,57950.0,0.30645528]
[1617750476458,0.10015655,57956.0,57951.0,0.01]
[1617750476858,0.10015655,57956.0,57952.0,0.0515]
[1617750477258,0.10015655,57956.0,57953.0,0.27]
[1617750477859,1.62320492,57954.0,57953.0,0.27]
[1617750478059,1.62320492,57954.0,57951.0,0.27]
[1617750478460,1.62320492,57954.0,57953.0,0.27]
[1617750478659,0.10015655,57956.0,57953.0,0.0522]
[1617750478860,0.10015655,57956.0,57951.0,0.27]
[1617750479058,0.10015655,57956.0,57953.0,0.27]
[1617750479259,1.62206598,57955.0,57953.0,0.27]
[1617750479459,1.62206598,57955.0,57952.0,0.27]
[1617750479660,0.10015655,57956.0,57954.0,0.27]
[1617750480060,1.86753455,57955.0,57950.0,0.30645528]
[1617750480259,1.86753455,57955.0,57952.0,0.27]
[1617750480459,1.86753455,57955.0,57950.0,0.30645528]
[1617750480661,1.62191668,57951.0,57950.0,0.30645528]
[1617750481061,1.62191668,57951.0,57950.0,0.57645528]
[1617750484965,1.11509305,57951.0,57950.0,0.9442524]
[1617750485365,1.3606748,57951.0,57950.0,0.9442524]
[1617750485967,1.11509305,57951.0,57950.0,1.00564779]
[1617750486767,1.11509305,57951.0,57950.0,1.45518084]
[1617750487068,0.6690761,57951.0,57950.0,1.45518084]
[1617750493675,0.10015655,57956.0,57950.0,1.45518084]
[1617750493876,0.67019553,57951.0,57950.0,1.45518084]
[1617750494678,0.10015655,57956.0,57950.0,1.45518084]
[1617750494880,0.89966389,57951.0,57950.0,1.45518084]
[1617750495480,0.30465094,57951.0,57950.0,1.9659378]
[1617750495884,0.30465094,57951.0,57950.0,2.90454241]
[1617750496281,0.30465094,57951.0,57950.0,1.90454241]
[1617750496483,0.00517306,57951.0,57950.0,1.45517216]
[1617750496883,0.00517306,57951.0,57950.0,1.56242871]
[1617750497483,0.00517306,57951.0,57950.0,2.56242871]
[1617750497683,0.00213047,57951.0,57950.0,3.07252176]
[1617750498283,0.00213047,57951.0,57950.0,2.56242871]
[1617750498284,0.00307358,57951.0,57950.0,2.56242871]
[1617750498483,0.00307358,57951.0,57950.0,1.56242871]
[1617750499484,0.00307358,57951.0,57950.0,1.61452871]
[1617750499689,0.01024296,57952.0,57950.0,1.56242871]
[1617750500486,0.30434772,57953.0,57950.0,1.56242871]
[1617750500487,0.01024672,57953.0,57951.0,2.31625192]
[1617750500685,0.01024672,57953.0,57951.0,3.31625192]
[1617750500887,0.00213191,57955.0,57952.0,1.59628505]
[1617750501086,0.00213191,57955.0,57953.0,1.5]
[1617750501288,0.00213191,57955.0,57954.0,2.31625221]
[1617750501487,0.00213191,57955.0,57954.0,4.08625221]
[1617750501891,0.00213275,57957.0,57954.0,4.14763019]
[1617750502088,0.00213275,57957.0,57954.0,1.59623019]
[1617750502290,0.00213275,57957.0,57954.0,1.68829742]
[1617750502690,0.00213299,57955.0,57954.0,0.78002105]
[1617750503090,0.01025866,57957.0,57954.0,1.58595499]
[1617750503692,0.30481435,57958.0,57954.0,1.58595499]
[1617750503693,0.01025785,57956.0,57955.0,0.0613781]
[1617750504094,0.01025875,57957.0,57955.0,0.82619924]
[1617750504693,0.01025969,57958.0,57955.0,1.27482926]
[1617750504893,0.01025969,57958.0,57957.0,0.10725655]
[1617750505092,0.3048874,57958.0,57957.0,0.86201461]
[1617750505292,0.3048874,57958.0,57957.0,1.13201461]
[1617750505895,0.3048874,57958.0,57957.0,1.19339103]
[1617750505896,0.01026334,57958.0,57957.0,1.19339103]
[1617750506495,0.30492596,57958.0,57957.0,1.19339103]
[1617750507398,0.01025158,57959.0,57957.0,1.19339103]
[1617750507795,0.01025158,57959.0,57958.0,0.36702465]
[1617750508195,0.01025158,57959.0,57958.0,1.08530895]
[1617750508596,0.01025292,57960.0,57958.0,1.08530895]
[1617750509196,0.01025351,57961.0,57959.0,0.81531021]
[1617750509396,0.01025351,57961.0,57960.0,0.27]
[1617750509596,0.30463618,57961.0,57960.0,0.57564896]
[1617750509998,0.30453699,57962.0,57960.0,0.63702579]
[1617750510496,0.01025031,57961.0,57960.0,0.63702579]
[1617750510898,0.30453699,57962.0,57961.0,0.36702448]
[1617750511296,0.30453699,57962.0,57961.0,0.63702448]
[1617750515702,0.69208029,57969.0,57961.0,0.63702448]
[1617750515703,0.30457297,57963.0,57961.0,0.63702448]
[1617750516504,0.30457297,57963.0,57961.0,0.36702448]
[1617750517007,0.10725655,57962.0,57961.0,0.36702448]
[1617750517207,0.10725655,57962.0,57961.0,0.30564794]
[1617750517407,0.10725655,57962.0,57961.0,0.35714794]
[1617750517611,0.10725655,57962.0,57957.0,0.10725655]
[1617750518008,0.35276728,57962.0,57961.0,0.30550961]
[1617750518410,0.65701305,57962.0,57961.0,0.30550961]
[1617750518609,0.65701305,57962.0,57958.0,0.27]
[1617750518810,0.41150232,57962.0,57961.0,0.3668618]
[1617750519412,0.41150232,57962.0,57961.0,0.30548389]
[1617750520411,0.41150232,57962.0,57961.0,0.67206289]
[1617750525320,1.41150232,57962.0,57961.0,0.67206289]
[1617750526120,1.41150232,57962.0,57961.0,0.30548389]
[1617750526520,1.41150232,57962.0,57961.0,0.67206143]
[1617750527320,1.41150232,57962.0,57961.0,0.72356143]
[1617750527521,1.41150232,57962.0,57961.0,0.67206143]
[1617750528122,1.41150232,57962.0,57961.0,0.73343876]
[1617750528722,1.41150232,57962.0,57961.0,0.30548389]
[1617750529925,1.77705611,57962.0,57961.0,0.30548389]
[1617750530325,0.77705611,57962.0,57961.0,0.30548389]
[1617750530928,0.41150232,57962.0,57961.0,0.67217116]
[1617750532531,0.10725655,57962.0,57961.0,0.67217116]
[1617750532931,0.11751902,57962.0,57961.0,0.67217116]
[1617750535535,0.10725655,57962.0,57961.0,0.67217116]
[1617750537842,0.10939027,57962.0,57961.0,1.1203283]
[1617750538240,0.10725655,57962.0,57961.0,1.1203283]
[1617750540944,0.10725655,57962.0,57961.0,1.1719283]
[1617750541544,0.10725655,57962.0,57961.0,1.2333016]
[1617750543144,0.01027037,57964.0,57961.0,1.2333016]
[1617750543548,0.00213601,57963.0,57961.0,1.5033016]
[1617750544147,0.00213601,57963.0,57962.0,1.18246776]
[1617750544344,0.00213601,57963.0,57962.0,1.45246776]
[1617750545347,0.01029014,57963.0,57962.0,1.9628792]
[1617750546150,0.29693965,57964.0,57962.0,1.9628792]
[1617750546548,0.36693015,57968.0,57963.0,0.8778937]
[1617750546748,0.36693015,57968.0,57963.0,1.3884192]
[1617750547151,0.36693015,57968.0,57967.0,1.05860269]
[1617750547950,0.36693015,57968.0,57967.0,1.11997315]
[1617750548550,0.34253015,57968.0,57967.0,1.11997315]
[1617750548754,0.58801259,57968.0,57967.0,1.11997315]
[1617750549153,0.34253015,57968.0,57967.0,1.11997315]
[1617750550453,0.44867455,57974.0,57967.0,1.11997315]
[1617750550954,0.44867455,57974.0,57972.0,0.44915386]
[1617750551255,0.44867455,57974.0,57973.0,0.10725655]
[1617750551454,0.24548306,57978.0,57973.0,0.55640569]
[1617750551455,0.44878848,57975.0,57973.0,0.55640569]
[1617750551854,0.24547932,57974.0,57973.0,0.61777552]
[1617750552355,0.4487109,57974.0,57973.0,0.16862638]
[1617750552956,0.69419195,57974.0,57973.0,0.16862638]
[1617750553357,0.4487109,57974.0,57973.0,0.16862638]
[1617750554857,0.44877804,57975.0,57973.0,0.61777611]
[1617750555258,0.44877804,57975.0,57974.0,0.06137]
[1617750556662,0.44877804,57975.0,57974.0,0.51066337]
[1617750558063,0.44829256,57976.0,57974.0,0.06137]
[1617750558462,0.44833275,57977.0,57974.0,0.06137]
[1617750560564,0.44837702,57976.0,57974.0,0.06137]
[1617750561467,0.44840611,57977.0,57974.0,0.06137]
[1617750561868,0.24547782,57975.0,57974.0,0.06137]
[1617750562469,0.44838182,57976.0,57974.0,0.06137]
[1617750562867,1.44825894,57975.0,57974.0,0.06137]
[1617750563468,1.69374288,57975.0,57974.0,0.06137]
[1617750563870,1.69374288,57975.0,57973.0,0.10725655]
[1617750564272,0.69367042,57974.0,57973.0,0.10725655]
[1617750565771,1.69367042,57974.0,57973.0,0.10725655]
[1617750566371,0.69367042,57974.0,57973.0,0.10725655]
[1617750567574,1.0,57976.0,57973.0,0.10725655]
[1617750567575,0.69418801,57975.0,57973.0,0.10725655]
[1617750567774,0.69418801,57975.0,57973.0,0.25633655]
[1617750567974,0.44870349,57975.0,57974.0,0.06137216]
[1617750568575,0.69419898,57976.0,57974.0,0.06137216]
[1617750568876,0.44871055,57975.0,57974.0,0.06137216]
[1617750571079,0.44877668,57976.0,57974.0,0.06137216]
[1617750571379,0.24548406,57975.0,57974.0,0.06137216]
[1617750571778,0.44877668,57976.0,57974.0,0.06137216]
[1617750572478,0.24548395,57975.0,57974.0,0.06137216]
[1617750572880,0.44877668,57976.0,57974.0,0.06137216]
[1617750573980,0.24548256,57978.0,57975.0,0.36577991]
[1617750573981,0.44877187,57977.0,57975.0,0.36577991]
[1617750574379,0.36719521,57976.0,57975.0,0.36577991]
[1617750576584,0.67320909,57976.0,57975.0,0.67079385]
[1617750588800,0.30601388,57976.0,57975.0,0.67079385]
[1617750589000,0.91866682,57976.0,57975.0,0.67079385]
[1617750589401,0.67319847,57976.0,57975.0,1.11799262]
[1617750590205,0.30601388,57976.0,57975.0,1.11799262]
[1617750590804,0.67368005,57976.0,57975.0,1.11799262]
[1617750592910,0.30601388,57976.0,57975.0,1.11799262]
[1617750599423,0.30621318,57977.0,57975.0,1.62579863]
[1617750599826,0.30621318,57977.0,57976.0,1.11700292]
[1617750601128,0.30621318,57977.0,57976.0,1.17836272]
[1617750601528,0.30621318,57977.0,57976.0,1.11700292]
[1617750601928,0.30621318,57977.0,57976.0,1.62491725]
[1617750602329,0.30621318,57977.0,57976.0,1.11700292]
[1617750606037,0.30619166,57978.0,57976.0,1.62442346]
[1617750606440,0.30619166,57978.0,57977.0,1.11632788]
[1617750608138,0.41344551,57979.0,57977.0,1.62368164]
[1617750608537,0.41344551,57979.0,57978.0,1.11625093]
[1617750611843,0.30618896,57979.0,57978.0,1.11625093]
[1617750612444,0.30618896,57979.0,57978.0,1.22350748]
[1617750613246,0.30618896,57979.0,57978.0,1.28486493]
[1617750624657,1.30618896,57979.0,57978.0,1.28486493]
[1617750625057,0.30618896,57979.0,57978.0,1.28486493]
[1617750625258,0.55161953,57979.0,57978.0,1.28486493]
[1617750625658,0.6734717,57979.0,57978.0,1.28486493]